bitfinex-derivatives/quotes_BTCF0:USTF0_20250309
["timestamp","ask_amount","ask_price","bid_price","bid_amount"]
[1741497483906,0.2383197,86025.0,86024.0,0.03115439]
[1741497484901,0.2383197,86025.0,86024.0,0.00025439]
[1741497486207,0.5991197,86025.0,86024.0,0.00025439]
[1741497487295,0.5991197,86025.0,86024.0,0.00017439]
[1741497488207,0.5991197,86025.0,86024.0,0.00025439]
[1741497488406,0.0697645,86019.0,86018.0,4e-05]
[1741497488602,0.5045245,86019.0,86018.0,4e-05]
[1741497489207,0.5045245,86019.0,86015.0,0.20869611]
[1741497489400,0.069767,86016.0,86015.0,0.20869611]
[1741497490206,0.069767,86016.0,86015.0,0.20877611]
[1741497491603,0.12631861,86016.0,86015.0,8e-05]
[1741497493815,0.84791861,86016.0,86015.0,8e-05]
[1741497494611,1.02182726,86016.0,86015.0,8e-05]
[1741497497716,0.791367,86016.0,86015.0,0.0698478]
[1741497498019,0.865407,86016.0,86015.0,0.0698478]
[1741497498227,0.865407,86016.0,86015.0,0.0698878]
[1741497498514,0.895607,86016.0,86015.0,0.0698878]
[1741497499423,0.895607,86016.0,86015.0,0.0699678]
[1741497499610,0.928207,86016.0,86015.0,0.0699678]
[1741497500412,0.206607,86016.0,86015.0,0.0699678]
[1741497500617,0.567407,86016.0,86015.0,0.0699678]
[1741497502520,0.567407,86016.0,86015.0,0.0002]
[1741497502720,0.567407,86016.0,86015.0,0.0699678]
[1741497503626,0.567407,86016.0,86015.0,0.1336678]
[1741497504336,0.567407,86016.0,86015.0,0.0639]
[1741497508629,0.567407,86016.0,86015.0,0.0002]
[1741497509232,0.567407,86016.0,86013.0,0.0332]
[1741497509431,0.0697686,86014.0,86013.0,0.0332]
[1741497509931,0.1324686,86014.0,86013.0,0.0332]
[1741497510237,0.1324686,86014.0,86013.0,0.03328]
[1741497510932,0.1324686,86014.0,86013.0,0.03450042]
[1741497512238,0.1324686,86014.0,86013.0,0.03442042]
[1741497513933,0.1324686,86014.0,86013.0,0.03450042]
[1741497514335,0.1324686,86014.0,86013.0,0.00130042]
[1741497514936,0.1324686,86014.0,86013.0,0.03350042]
[1741497519433,0.1015686,86014.0,86013.0,0.10326982]
[1741497519631,0.1015686,86014.0,86013.0,0.13626982]
[1741497520332,0.1015686,86014.0,86013.0,0.13630982]
[1741497520533,0.1015686,86014.0,86013.0,0.06654042]
[1741497521338,0.1015686,86014.0,86013.0,0.06662042]
[1741497521737,0.1015686,86014.0,86013.0,0.09692042]
[1741497522845,0.1755686,86014.0,86013.0,0.09692042]
[1741497523046,0.1755686,86014.0,86013.0,0.06392042]
[1741497524040,0.5363686,86014.0,86013.0,0.06392042]
[1741497525046,0.1755686,86014.0,86013.0,0.06392042]
[1741497525346,0.5363686,86014.0,86013.0,0.06392042]
[1741497530449,0.1755686,86014.0,86013.0,0.06392042]
[1741497530950,0.5363686,86014.0,86013.0,0.06392042]
[1741497531146,0.5672686,86014.0,86013.0,0.06392042]
[1741497531341,0.2064686,86014.0,86013.0,0.06392042]
[1741497531543,0.5672686,86014.0,86013.0,0.06392042]
[1741497532543,0.2064686,86014.0,86013.0,0.06392042]
[1741497532848,0.5672686,86014.0,86013.0,0.13368982]
[1741497534150,0.5672686,86014.0,86013.0,0.15014252]
[1741497535044,0.5672686,86014.0,86013.0,0.13368982]
[1741497535245,0.5672686,86014.0,86013.0,0.13376982]
[1741497535453,0.4305686,86014.0,86013.0,0.13376982]
[1741497535643,0.3608,86014.0,86013.0,0.13376982]
[1741497536044,0.4305686,86014.0,86013.0,0.15024638]
[1741497536255,0.4305686,86014.0,86013.0,0.15028638]
[1741497536453,0.0697686,86014.0,86013.0,0.15028638]
[1741497536860,0.0697686,86014.0,86013.0,0.1621385]
[1741497537050,0.0697686,86014.0,86013.0,0.14566194]
[1741497537248,0.0697686,86014.0,86013.0,0.14574194]
[1741497537446,0.24367725,86016.0,86015.0,0.0697678]
[1741497537658,0.17390865,86016.0,86015.0,0.1437678]
[1741497537856,0.17390865,86016.0,86015.0,0.14498822]
[1741497538050,0.17390865,86016.0,86015.0,0.20588822]
[1741497538252,0.17390865,86016.0,86015.0,0.22233741]
[1741497538955,0.13931206,86017.0,86015.0,0.15260961]
[1741497539260,0.13931206,86017.0,86016.0,0.08621619]
[1741497539462,0.13931206,86017.0,86016.0,0.44701619]
[1741497539759,0.13931206,86017.0,86016.0,0.66321619]
[1741497539954,0.13931206,86017.0,86016.0,0.51443661]
[1741497540356,0.17390865,86022.0,86016.0,0.95990961]
[1741497540659,0.20925736,86027.0,86025.0,0.0697597]
[1741497540861,0.20925736,86027.0,86025.0,0.52104889]
[1741497541054,0.20925736,86027.0,86025.0,0.67226931]
[1741497541256,0.20925736,86027.0,86025.0,0.65586012]
[1741497541461,0.20925736,86027.0,86025.0,0.71896012]
[1741497542258,0.20925736,86027.0,86025.0,0.71904012]
[1741497543056,0.20925736,86027.0,86026.0,0.0697589]
[1741497543562,0.20925736,86027.0,86026.0,0.2813589]
[1741497543749,0.20925736,86027.0,86026.0,0.6465589]
[1741497543955,0.0697446,86044.0,86043.0,0.0697451]
[1741497544353,0.1012446,86044.0,86043.0,0.0697451]
[1741497544961,0.1012446,86044.0,86043.0,0.13446552]
[1741497545362,0.1012446,86044.0,86043.0,0.13454552]
[1741497546957,0.1012446,86044.0,86043.0,0.14619224]
[1741497551566,0.1012446,86044.0,86043.0,0.13454552]
[1741497552758,0.0315,86044.0,86043.0,0.13454552]
[1741497553861,0.0627,86044.0,86043.0,0.13454552]
[1741497554062,0.00017439,86052.0,86051.0,0.0697386]
[1741497554464,0.03137439,86052.0,86051.0,0.0697386]
[1741497554666,0.00017439,86052.0,86051.0,0.0697386]
[1741497554868,0.00017439,86052.0,86051.0,0.1437786]
[1741497555063,0.00017439,86052.0,86051.0,0.14499902]
[1741497555260,0.00017439,86052.0,86051.0,0.14503902]
[1741497555474,0.00017439,86052.0,86051.0,0.17773902]
[1741497555862,0.00017439,86052.0,86051.0,0.53853902]
[1741497556268,0.00017439,86052.0,86051.0,0.53861902]
[1741497557369,0.00017439,86052.0,86051.0,0.53869902]
[1741497558370,0.00017439,86052.0,86051.0,0.55512189]
[1741497559071,0.00017439,86052.0,86051.0,0.53873902]
[1741497559274,0.00017439,86052.0,86051.0,0.55520347]
[1741497560474,0.00017439,86052.0,86051.0,0.92040347]
[1741497561369,0.00017439,86052.0,86051.0,0.92044347]
[1741497562173,0.00017439,86052.0,86051.0,0.84640347]
[1741497562381,0.00017439,86052.0,86051.0,0.92048347]
[1741497563276,0.00017439,86052.0,86051.0,0.90409902]
[1741497563874,0.03267439,86052.0,86051.0,0.90409902]
[1741497564976,0.0348543,86088.0,86072.0,0.0697216]
[1741497565175,0.0308,86079.0,86072.0,0.8698816]
[1741497565372,4e-05,86073.0,86072.0,0.8698816]
[1741497565569,4e-05,86073.0,86072.0,0.8699216]
[1741497566180,0.06504,86073.0,86072.0,0.87114202]
[1741497566572,0.06504,86073.0,86072.0,0.88301228]
[1741497566773,0.06508,86073.0,86072.0,0.88301228]
[1741497566977,0.1348008,86073.0,86072.0,0.87114202]
[1741497567281,0.06508,86073.0,86072.0,0.87110202]
[1741497567674,0.06528,86073.0,86072.0,0.87110202]
[1741497568176,0.06528,86073.0,86072.0,0.87118202]
[1741497568776,0.06528,86073.0,86072.0,0.88280537]
[1741497569278,0.06528,86073.0,86072.0,0.89149066]
[1741497570983,0.06528,86073.0,86072.0,0.87986731]
[1741497572575,0.06528,86073.0,86072.0,0.89180512]
[1741497577777,0.06528,86073.0,86072.0,0.53100512]
[1741497577978,0.06528,86073.0,86072.0,0.89180512]
[1741497580080,0.06528,86073.0,86072.0,0.92240512]
[1741497580682,0.06528,86073.0,86072.0,0.89180512]
[1741497580882,0.06528,86073.0,86072.0,0.92300512]
[1741497581787,0.06528,86073.0,86072.0,0.95590512]
[1741497582987,0.06528,86073.0,86072.0,0.95614512]
[1741497585292,0.06528,86073.0,86072.0,0.59534512]
[1741497585486,0.06528,86073.0,86072.0,0.95614512]
[1741497598394,0.06528,86073.0,86072.0,0.95606512]
[1741497598803,0.06528,86073.0,86072.0,0.59526512]
[1741497599001,0.06528,86073.0,86072.0,0.23006512]
[1741497601002,0.06528,86073.0,86072.0,0.07962731]
[1741497601198,0.1350408,86073.0,86072.0,0.00990571]
[1741497601593,0.1350408,86073.0,86072.0,0.07962731]
[1741497602204,0.1352408,86073.0,86072.0,0.07962731]
[1741497602601,0.1352408,86073.0,86072.0,0.07970731]
[1741497608514,0.06552,86073.0,86072.0,0.07970731]
[1741497608810,0.06552,86073.0,86072.0,0.19269564]
[1741497609206,0.065,86073.0,86072.0,0.19269564]
[1741497609603,0.065,86073.0,86072.0,0.55349564]
[1741497609804,0.065,86073.0,86072.0,0.55353564]
[1741497610313,0.0652,86073.0,86072.0,0.55353564]
[1741497610514,0.0652,86073.0,86072.0,0.19281564]
[1741497613812,0.0652,86073.0,86072.0,0.19304541]
[1741497614212,0.0652,86073.0,86072.0,0.19604541]
[1741497615717,0.0652,86073.0,86072.0,0.17932731]
[1741497615910,0.1349208,86073.0,86072.0,0.16524002]
[1741497617421,0.1349208,86073.0,86072.0,0.16824002]
[1741497618023,0.1349208,86073.0,86072.0,0.16624002]
[1741497619228,0.1350408,86073.0,86072.0,0.16624002]
[1741497619419,0.1350408,86073.0,86072.0,0.16324002]
[1741497619624,0.1350408,86073.0,86072.0,0.16404002]
[1741497620326,0.1352408,86073.0,86072.0,0.16404002]
[1741497620629,0.1352408,86073.0,86072.0,0.13102002]
[1741497620929,0.1352408,86073.0,86072.0,0.20526002]
[1741497621318,0.1352408,86073.0,86072.0,0.23766002]
[1741497622024,0.1352408,86073.0,86072.0,0.23666002]
[1741497623734,0.1352408,86073.0,86072.0,0.09742002]
[1741497624225,0.1352808,86073.0,86072.0,0.15802002]
[1741497624624,0.1352808,86073.0,86072.0,0.15794002]
[1741497625232,0.1354808,86073.0,86072.0,0.15794002]
[1741497625431,0.06576,86073.0,86072.0,0.15794002]
[1741497625622,0.06576,86073.0,86072.0,0.15802002]
[1741497626127,0.06576,86073.0,86072.0,0.18821085]
[1741497627121,0.03246,86073.0,86072.0,0.21551193]
[1741497627427,0.0317,86073.0,86072.0,0.21551193]
[1741497628327,4e-05,86074.0,86073.0,0.0697208]
[1741497628533,4e-05,86074.0,86073.0,0.21583261]
[1741497628717,4e-05,86076.0,86075.0,0.0697191]
[1741497628920,0.00016,86076.0,86075.0,0.51393091]
[1741497629124,0.00016,86076.0,86075.0,0.58995133]
[1741497629323,0.17340166,86090.0,86080.0,0.0697151]
[1741497629528,0.00017427,86081.0,86080.0,0.27871201]
[1741497630033,0.00017427,86081.0,86080.0,0.34382218]
[1741497630218,0.00025427,86081.0,86080.0,0.3450426]
[1741497631325,0.00025427,86081.0,86080.0,0.29419467]
[1741497631627,0.00225427,86081.0,86080.0,0.29419467]
[1741497631823,0.00525427,86081.0,86080.0,0.29419467]
[1741497632023,0.00525427,86081.0,86080.0,0.24917988]
[1741497632332,0.00525427,86081.0,86080.0,0.29409725]
[1741497632727,0.00525427,86081.0,86080.0,1.01569725]
[1741497632928,0.00525427,86081.0,86080.0,1.86012351]
[1741497634037,0.00489134,86081.0,86080.0,1.86012351]
[1741497634235,0.00489134,86081.0,86080.0,1.8600714]
[1741497634635,0.00489134,86081.0,86080.0,2.2252714]
[1741497635134,0.00489134,86081.0,86080.0,1.8088387]
[1741497635732,0.03579134,86081.0,86080.0,1.8088387]
[1741497636124,4e-05,86084.0,86083.0,0.0697127]
[1741497636331,4e-05,86084.0,86083.0,0.11457796]
[1741497636530,4e-05,86084.0,86083.0,0.17957796]
[1741497637228,4e-05,86084.0,86083.0,0.18079838]
[1741497637430,4e-05,86090.0,86086.0,0.0697102]
[1741497637628,4e-05,86090.0,86086.0,0.18953546]
[1741497637939,4e-05,86090.0,86086.0,0.20443108]
[1741497638329,0.1338026,86096.0,86088.0,0.0697086]
[1741497638529,0.00021427,86089.0,86088.0,0.47665918]
[1741497638833,0.00021427,86089.0,86088.0,0.4915548]
[1741497639339,0.00029427,86089.0,86088.0,0.49277522]
[1741497639544,0.00029427,86089.0,86088.0,0.49288879]
[1741497639836,0.00229427,86089.0,86088.0,0.49288879]
[1741497640237,0.00229427,86089.0,86088.0,0.52906417]
[1741497640646,0.00229427,86089.0,86088.0,0.89426417]
[1741497640834,0.00894517,86091.0,86088.0,0.84878888]
[1741497641029,0.0332,86096.0,86090.0,0.069707]
[1741497641238,0.0332,86096.0,86095.0,0.430503]
[1741497641431,0.0696941,86106.0,86100.0,0.0696989]
[1741497641635,0.0696957,86104.0,86100.0,0.15213843]
[1741497642041,0.03658966,86107.0,86100.0,0.15213843]
[1741497642042,0.0301,86103.0,86100.0,0.15213843]
[1741497642240,0.03018,86103.0,86100.0,0.23103405]
[1741497642430,0.0998768,86103.0,86100.0,0.23225447]
[1741497643034,0.0998768,86103.0,86102.0,0.0696973]
[1741497643234,0.0998768,86103.0,86102.0,0.15213683]
[1741497643435,0.0998768,86103.0,86102.0,0.15335725]
[1741497643744,0.0998768,86103.0,86102.0,0.16825287]
[1741497644547,0.0998768,86103.0,86102.0,0.16933949]
[1741497645239,0.1078768,86103.0,86102.0,0.17033949]
[1741497647443,0.1078768,86103.0,86102.0,0.19452961]
[1741497648149,0.1077968,86103.0,86102.0,0.19452961]
[1741497648340,0.1097968,86103.0,86102.0,0.19452961]
[1741497648547,0.1097968,86103.0,86102.0,0.19452973]
[1741497649840,0.1097968,86103.0,86102.0,0.17033961]
[1741497651439,0.1097968,86103.0,86102.0,0.1945451]
[1741497651951,0.1097968,86103.0,86102.0,0.17033961]
[1741497652552,0.1097968,86103.0,86102.0,0.17033993]
[1741497653051,0.1097968,86103.0,86102.0,0.1945337]
[1741497653650,0.1097968,86103.0,86102.0,0.17033993]
[1741497655954,0.1097968,86103.0,86102.0,0.10064263]
[1741497656156,0.1097968,86103.0,86102.0,0.17033993]
[1741497656352,0.1097968,86103.0,86102.0,0.10064263]
[1741497656556,0.4705968,86103.0,86102.0,0.10064263]
[1741497657359,0.4706368,86103.0,86102.0,0.10064263]
[1741497658260,0.4706368,86103.0,86102.0,0.12491258]
[1741497658661,0.4706368,86103.0,86102.0,0.13815424]
[1741497659353,0.4707168,86103.0,86102.0,0.13815424]
[1741497659763,0.4707168,86103.0,86102.0,0.12491258]
[1741497660558,0.4707168,86103.0,86102.0,0.12467253]
[1741497661768,0.4707168,86103.0,86102.0,0.13792086]
[1741497662164,0.4657168,86103.0,86102.0,0.12792086]
[1741497662565,0.4627168,86103.0,86102.0,0.06032318]
[1741497662862,0.4627168,86103.0,86102.0,0.0766009]
[1741497664364,0.4627568,86103.0,86102.0,0.0766009]
[1741497665372,0.4628368,86103.0,86102.0,0.0766009]
[1741497666372,0.4628368,86103.0,86102.0,0.06622064]
[1741497667075,0.6128368,86103.0,86102.0,0.06622064]
[1741497667669,0.6128368,86103.0,86102.0,0.05297246]
[1741497667871,0.4628368,86103.0,86102.0,0.05297246]
[1741497668169,0.4628368,86103.0,86102.0,0.02869474]
[1741497668368,0.4629165,86103.0,86102.0,0.02827357]
[1741497671676,0.6129165,86103.0,86102.0,0.02827357]
[1741497671879,0.0697046,86093.0,86088.0,0.20849508]
[1741497672081,0.5053046,86093.0,86089.0,0.0314]
[1741497672381,0.5053046,86093.0,86089.0,0.0637]
[1741497672777,0.5669046,86093.0,86089.0,0.0637]
[1741497673282,0.5669046,86093.0,86089.0,0.1334075]
[1741497673882,0.5669046,86093.0,86089.0,0.0637]
[1741497674073,0.5669046,86093.0,86089.0,0.1334078]
[1741497674481,0.5669046,86093.0,86089.0,0.0637]
[1741497674678,0.5669046,86093.0,86092.0,0.03201328]
[1741497676684,0.5669046,86093.0,86092.0,0.03204267]
[1741497681088,0.5669046,86093.0,86092.0,0.01742763]
[1741497681789,0.5669046,86093.0,86092.0,0.04492281]
[1741497682387,0.5669446,86093.0,86092.0,0.04492281]
[1741497683291,0.5670246,86093.0,86092.0,0.05953099]
[1741497683590,0.2062246,86093.0,86092.0,0.05953099]
[1741497683784,0.9278246,86093.0,86092.0,0.05953099]
[1741497684884,0.2062246,86093.0,86092.0,0.05953099]
[1741497685086,0.9278246,86093.0,86092.0,0.05953099]
[1741497685791,0.9278246,86093.0,86092.0,0.01742763]
[1741497686183,0.9279046,86093.0,86092.0,0.04465064]
[1741497686794,0.9279046,86093.0,86092.0,0.04443329]
[1741497687195,0.9279846,86093.0,86092.0,0.04443329]
[1741497688989,0.9279846,86093.0,86092.0,0.04457855]
[1741497694190,0.9279846,86093.0,86092.0,0.00017427]
[1741497694396,0.9279846,86093.0,86092.0,0.04447191]
[1741497698295,0.9279846,86093.0,86092.0,0.05909222]
[1741497699703,0.9279846,86093.0,86092.0,0.06016972]
[1741497699899,0.7915846,86093.0,86092.0,0.06016972]
[1741497700104,0.5055046,86093.0,86092.0,0.06016972]
[1741497700403,0.5055046,86093.0,86092.0,0.12987512]
[1741497700404,0.1447046,86093.0,86092.0,0.12987512]
[1741497700604,0.1447046,86093.0,86092.0,0.19227512]
[1741497700806,0.1444246,86093.0,86092.0,0.19227512]
[1741497701101,0.1444246,86093.0,86092.0,0.20553039]
[1741497701405,0.0348511,86096.0,86095.0,0.069703]
[1741497701608,0.4305021,86097.0,86096.0,0.0697021]
[1741497701898,0.4305021,86097.0,86096.0,0.14295282]
[1741497702099,0.4305021,86097.0,86096.0,0.20575282]
[1741497703205,0.4305821,86097.0,86096.0,0.20575282]
[1741497704205,0.4305821,86097.0,86096.0,0.19249755]
[1741497705403,0.4305821,86097.0,86096.0,0.19213553]
[1741497706302,0.36088,86097.0,86096.0,0.19213553]
[1741497706711,0.4305813,86097.0,86096.0,0.19213553]
[1741497707207,0.4305813,86097.0,86096.0,0.20538302]
[1741497708201,8e-05,86097.0,86096.0,0.20538302]
[1741497709203,0.0696982,86101.0,86096.0,0.13568092]
[1741497709412,0.002,86103.0,86100.0,0.0696989]
[1741497709602,0.002,86103.0,86102.0,0.0696973]
[1741497709802,0.002,86103.0,86102.0,0.19053455]
[1741497710003,0.002,86103.0,86102.0,0.20527822]
[1741497710211,0.00208,86103.0,86102.0,0.20527822]
[1741497710810,0.0754,86107.0,86106.0,0.069694]
[1741497710811,4e-05,86107.0,86106.0,0.069694]
[1741497711005,4e-05,86107.0,86106.0,0.12783125]
[1741497711206,0.00174283,86111.0,86106.0,0.16684954]
[1741497711409,0.00174283,86111.0,86108.0,0.0696924]
[1741497711713,0.00021427,86109.0,86108.0,0.12898275]
[1741497711914,0.00021427,86109.0,86108.0,0.19038275]
[1741497712303,0.00017427,86109.0,86108.0,0.22940104]
[1741497713112,0.00017427,86109.0,86108.0,0.24093817]
[1741497713412,0.00025427,86109.0,86108.0,0.18164782]
[1741497713603,0.00025427,86109.0,86108.0,0.24089315]
[1741497714613,0.00025427,86109.0,86108.0,0.21661853]
[1741497715508,0.00025427,86109.0,86108.0,0.21658025]
[1741497716015,0.00025427,86109.0,86108.0,0.20504312]
[1741497716201,0.06994587,86109.0,86108.0,0.20504312]
[1741497716805,0.3608,86140.0,86108.0,0.65055072]
[1741497717005,0.3608,86140.0,86132.0,0.0348361]
[1741497717006,0.3956335,86140.0,86132.0,0.0348361]
[1741497717206,0.1045071,86134.0,86133.0,0.15570705]
[1741497717413,0.1045071,86134.0,86133.0,0.12530705]
[1741497717911,0.1045071,86134.0,86133.0,0.20972292]
[1741497718916,0.1045871,86134.0,86133.0,0.20972292]
[1741497719605,0.1045871,86134.0,86133.0,0.20909141]
[1741497720803,0.1045871,86134.0,86133.0,0.13941921]
[1741497721317,0.1045871,86134.0,86133.0,0.13935844]
[1741497721707,0.1045871,86134.0,86133.0,0.20903064]
[1741497722007,0.1045871,86134.0,86133.0,0.13935844]
[1741497722214,0.1046671,86134.0,86133.0,0.13936193]
[1741497723005,0.1046671,86134.0,86133.0,0.13936189]
[1741497724010,0.1366671,86134.0,86133.0,0.13936189]
[1741497724208,0.4974671,86134.0,86133.0,0.08177669]
[1741497724409,0.4974671,86134.0,86133.0,0.04537766]
[1741497725007,0.4974671,86134.0,86133.0,0.03217131]
[1741497725211,0.4974671,86134.0,86133.0,0.04537752]
[1741497726318,0.4975471,86134.0,86133.0,0.04556042]
[1741497726709,0.0696779,86126.0,86125.0,0.00017417]
[1741497727016,0.5059979,86126.0,86125.0,0.00017417]
[1741497727406,0.0696884,86113.0,86112.0,0.00174186]
[1741497727620,0.5060084,86113.0,86112.0,0.00174186]
[1741497729413,0.5060884,86113.0,86112.0,0.00174186]
[1741497729822,0.5060884,86113.0,86112.0,0.02992143]
[1741497730212,0.51766029,86113.0,86112.0,0.02817957]
[1741497730417,0.0696949,86105.0,86104.0,0.00017417]
[1741497730722,0.5059349,86105.0,86104.0,0.00017417]
[1741497731420,0.5059349,86105.0,86104.0,0.02434862]
[1741497732222,0.5059349,86105.0,86104.0,0.00017417]
[1741497735424,0.5059349,86105.0,86104.0,0.02440604]
[1741497735617,0.5059349,86105.0,86104.0,0.09410174]
[1741497735819,0.5058549,86105.0,86104.0,0.09410174]
[1741497736523,0.5058549,86105.0,86104.0,0.12490174]
[1741497737327,0.43616,86105.0,86104.0,0.12490174]
[1741497737722,0.43632,86105.0,86104.0,0.12490174]
[1741497738033,0.0696915,86110.0,86107.0,0.1045395]
[1741497738220,0.0696915,86110.0,86109.0,0.0696916]
[1741497738716,0.0696915,86110.0,86109.0,0.1818295]
[1741497738920,0.0696915,86110.0,86109.0,0.22119322]
[1741497739117,0.0696915,86110.0,86109.0,0.20365532]
[1741497739321,0.0697715,86110.0,86109.0,0.22119282]
[1741497739925,0.0697715,86110.0,86109.0,0.19696095]
[1741497740325,0.0697715,86110.0,86109.0,0.22511945]
[1741497740716,0.1321715,86110.0,86109.0,0.22511945]
[1741497741227,0.1321715,86110.0,86109.0,0.17942345]
[1741497741429,0.1321715,86110.0,86109.0,0.22516331]
[1741497741824,0.0697715,86110.0,86109.0,0.22516331]
[1741497743324,0.0697715,86110.0,86109.0,0.22510083]
[1741497744534,0.0697715,86110.0,86109.0,0.15540923]
[1741497744738,0.1021715,86110.0,86109.0,0.15540923]
[1741497744928,0.1021715,86110.0,86109.0,0.22510083]
[1741497745127,0.1353715,86110.0,86109.0,0.22510083]
[1741497745329,0.0697715,86110.0,86109.0,0.22510083]
[1741497747742,0.0697715,86110.0,86109.0,0.15540923]
[1741497748827,0.1025715,86110.0,86109.0,0.15540923]
[1741497749138,0.1025715,86110.0,86109.0,0.22510083]
[1741497749432,0.0698115,86110.0,86109.0,0.17942345]
[1741497749639,0.0698115,86110.0,86109.0,0.22498492]
[1741497750332,0.0698915,86110.0,86109.0,0.22498492]
[1741497751239,0.1026915,86110.0,86109.0,0.22498492]
[1741497751537,0.1026915,86110.0,86109.0,0.22500354]
[1741497752138,0.1336915,86110.0,86109.0,0.22500354]
[1741497752442,0.1026915,86110.0,86109.0,0.22500354]
[1741497753240,0.1026915,86110.0,86109.0,0.24307908]
[1741497753546,0.1026915,86110.0,86109.0,0.17338748]
[1741497753838,0.1347915,86110.0,86109.0,0.17338748]
[1741497754349,0.1347915,86110.0,86109.0,0.15531194]
[1741497754835,0.1347915,86110.0,86109.0,0.22500354]
[1741497756544,0.1347915,86110.0,86109.0,0.15531194]
[1741497757644,0.1347915,86110.0,86109.0,0.12726265]
[1741497757836,0.1347915,86110.0,86109.0,0.22465747]
[1741497758744,0.1347915,86110.0,86109.0,0.15496587]
[1741497759751,0.1347915,86110.0,86109.0,0.12416587]
[1741497759951,0.1347915,86110.0,86109.0,0.12414877]
[1741497761150,0.1104046,86112.0,86109.0,0.12414877]
[1741497761151,4e-05,86120.0,86119.0,0.0696835]
[1741497761351,0.00017417,86121.0,86120.0,0.0696827]
[1741497761546,0.00017417,86121.0,86120.0,0.11432063]
[1741497761747,0.00017417,86121.0,86120.0,0.19175248]
[1741497761950,0.00017417,86121.0,86120.0,0.19160111]
[1741497762242,0.00017417,86121.0,86120.0,0.20302777]
[1741497762951,0.00017417,86121.0,86120.0,0.16422476]
[1741497763346,0.00025417,86121.0,86120.0,0.16422476]
[1741497763550,0.04571909,86129.0,86128.0,0.0696762]
[1741497763745,0.04571909,86129.0,86128.0,0.08678641]
[1741497763948,0.04571909,86129.0,86128.0,0.1017278]
[1741497765349,0.07861909,86129.0,86128.0,0.1017278]
[1741497766053,0.07861909,86129.0,86128.0,0.12885571]
[1741497768051,0.15397909,86129.0,86128.0,0.12885571]
[1741497772152,0.15397909,86129.0,86128.0,0.05910775]
[1741497773252,0.15401909,86129.0,86128.0,0.05910775]
[1741497774360,0.15401909,86129.0,86128.0,0.0320141]
[1741497776362,0.15397909,86129.0,86128.0,0.0320141]
[1741497776853,0.15397909,86129.0,86128.0,0.01688225]
[1741497777262,0.15405909,86129.0,86128.0,0.01688225]
[1741497779163,0.51485909,86129.0,86128.0,0.01688225]
[1741497779665,0.54715909,86129.0,86128.0,0.01688225]
[1741497780166,0.0696892,86112.0,86111.0,0.0329]
[1741497780356,0.5057292,86112.0,86111.0,0.0329]
[1741497780958,0.5695292,86112.0,86111.0,0.0329]
[1741497781458,0.5696092,86112.0,86111.0,0.0329]
[1741497781661,0.58117793,86112.0,86111.0,0.0329]
[1741497783571,0.5696092,86112.0,86111.0,0.0329]
[1741497783864,0.58149346,86112.0,86111.0,0.0329]
[1741497784063,0.58149346,86112.0,86111.0,0.063]
[1741497784064,0.5696092,86112.0,86111.0,0.063]
[1741497791974,0.5696092,86112.0,86111.0,0.07950993]
[1741497793977,0.5696092,86112.0,86111.0,0.07950655]
[1741497797273,0.0696924,86108.0,86107.0,0.20849508]
[1741497797776,0.0696949,86105.0,86104.0,0.27990962]
[1741497797975,0.1449349,86105.0,86104.0,0.27990962]
[1741497798578,0.1752349,86105.0,86104.0,0.27990962]
[1741497799585,0.1752349,86105.0,86104.0,0.27816761]
[1741497801777,0.1752349,86105.0,86104.0,0.00017417]
[1741497803083,0.1751149,86105.0,86104.0,0.00017417]
[1741497806786,0.1448149,86105.0,86104.0,0.00017417]
[1741497806986,0.1448149,86105.0,86104.0,0.06257417]
[1741497807185,0.1776149,86105.0,86104.0,0.06257417]
[1741497807793,4e-05,86108.0,86107.0,0.0696932]
[1741497807978,0.1448924,86108.0,86107.0,0.1632932]
[1741497808179,0.1448524,86108.0,86107.0,0.1632932]
[1741497809087,0.1448524,86108.0,86107.0,0.0936]
[1741497809289,0.1449324,86108.0,86107.0,0.1101553]
[1741497809785,0.1449324,86108.0,86107.0,0.1798485]
[1741497809982,0.1449324,86108.0,86107.0,0.1101553]
[1741497811382,8e-05,86108.0,86107.0,0.1798485]
[1741497811981,8e-05,86108.0,86107.0,0.19139304]
[1741497812287,0.07508,86112.0,86107.0,0.12161625]
[1741497812476,4e-05,86130.0,86110.0,0.3608]
[1741497812681,0.07516,86124.0,86122.0,0.0696811]
[1741497813478,0.06968,86124.0,86122.0,0.0696811]
[1741497813884,0.06968,86124.0,86122.0,0.1019811]
[1741497814692,0.0698003,86123.0,86122.0,0.1019811]
[1741497815790,0.0698003,86123.0,86122.0,0.1322811]
[1741497816589,0.00012,86123.0,86122.0,0.1322811]
[1741497817692,0.0698003,86123.0,86122.0,0.1322811]
[1741497819090,0.00012,86123.0,86122.0,0.1322811]
[1741497819793,0.0698003,86123.0,86122.0,0.1322811]
[1741497824687,0.1312003,86123.0,86122.0,0.1322811]
[1741497825094,0.1312003,86123.0,86122.0,0.0626]
[1741497825296,0.1312403,86123.0,86122.0,0.0626]
[1741497825498,0.1312403,86123.0,86122.0,0.1322811]
[1741497826288,0.1313203,86123.0,86122.0,0.1322811]
[1741497828100,0.0696843,86118.0,86117.0,0.1007851]
[1741497828299,0.5055243,86118.0,86117.0,0.1026851]
[1741497828893,0.5711243,86118.0,86117.0,0.1026851]
[1741497829396,0.2104043,86118.0,86117.0,0.1026851]
[1741497830096,0.5712043,86118.0,86117.0,0.1026851]
[1741497830396,0.5712043,86118.0,86117.0,0.033]
[1741497830703,0.2104043,86118.0,86117.0,0.033]
[1741497832102,0.5712043,86118.0,86117.0,0.033]
[1741497833102,0.2104043,86118.0,86117.0,0.033]
[1741497833494,0.5712043,86118.0,86117.0,0.033]
[1741497833689,0.2104043,86118.0,86117.0,0.033]
[1741497833893,0.2104043,86118.0,86117.0,0.1026851]
[1741497834802,0.5712043,86118.0,86117.0,0.1026851]
[1741497835304,0.2104043,86118.0,86117.0,0.1026851]
[1741497835499,0.10736,86118.0,86117.0,0.1026851]
[1741497835896,0.1446443,86118.0,86117.0,0.1026851]
[1741497836399,0.1445643,86118.0,86117.0,0.1026851]
[1741497837192,0.1757443,86118.0,86117.0,0.1026851]
[1741497837399,8e-05,86118.0,86117.0,0.1026851]
[1741497838003,0.0697643,86118.0,86117.0,0.1026851]
[1741497838196,0.1327643,86118.0,86117.0,0.1026851]
[1741497839600,0.1013643,86118.0,86117.0,0.1026851]
[1741497840103,8e-05,86118.0,86117.0,0.1342851]
[1741497840299,0.3608,86126.0,86125.0,0.0696787]
[1741497840505,0.4304779,86126.0,86125.0,0.0696787]
[1741497840811,0.3608,86126.0,86125.0,0.0696787]
[1741497841203,0.3608,86126.0,86125.0,0.1320787]
[1741497841807,0.03244,86127.0,86126.0,0.0696779]
[1741497842103,0.03244,86127.0,86126.0,0.1320779]
[1741497842104,0.06574,86127.0,86126.0,0.1320779]
[1741497842294,0.06582,86127.0,86126.0,0.1320779]
[1741497842899,0.1354979,86127.0,86126.0,0.1320779]